fUSD/lending_fUSD_20250906
["ID","MTS","AMOUNT","RATE_DAILY","PERIOD"]
[383809292,1757123491076,-9459.14370948,0.00077808,120]
[383809293,1757123491086,-151.0,0.00077808,120]
[383809294,1757123491095,-151.0,0.00077808,120]
[383809295,1757123491108,-204.854389,0.00077808,120]
[383809296,1757123491118,-218.043565,0.00077808,120]
[383809297,1757123491127,-201.01885817,0.00077969,28]
[383809298,1757123491136,-1237.20002965,0.00078,120]
[383809299,1757123491146,-400.0,0.00078,120]
[383809300,1757123491155,-5000.0,0.000785,120]
[383809301,1757123491164,-150.0,0.00078939,120]
[383809302,1757123491174,-3017.84144796,0.0007894,2]
[383809303,1757123491183,-2000.0,0.00079,120]
[383809304,1757123491192,-431.0,0.00079155,2]
[383809305,1757123491203,-199.87398,0.000793,120]
[383809306,1757123491211,-170.0,0.00079396,30]
[383809307,1757123491221,-170.0,0.00079412,7]
[383809308,1757123491230,-1900.0,0.000797,29]
[383809309,1757123491239,-346.67655944,0.00079726,110]
[383809310,1757123491248,-595.71275445,0.00079734,120]
[383809311,1757123491258,-170.0,0.00079799,30]
[383809312,1757123491267,-300.0,0.000798,29]
[383809313,1757123491277,-199.87398,0.000798,120]
[383809314,1757123491287,-1546.41244931,0.000799,15]
[383809315,1757123491296,-300.0,0.000799,29]
[383809316,1757123491305,-157.00556454,0.000799,120]
[383809317,1757123491314,-6576.34236893,0.000799,15]
[383809318,1757123491324,-349.43543474,0.000799,2]
[383809319,1757123491334,-170.0,0.00079973,120]
[383809320,1757123491346,-602.69437836,0.00079999,120]
[383809321,1757123491356,-300.0,0.00079999,60]
[383809322,1757123491366,-250.0,0.00079999,120]
[383809323,1757123491375,-151.0,0.00079999,120]
[383809324,1757123491384,-160.0,0.00079999,120]
[383809325,1757123491393,-250.0,0.00079999,120]
[383809326,1757123491403,-151.82786432,0.00079999,120]
[383809327,1757123491412,-200.40297397,0.00079999,120]
[383809328,1757123491421,-160.0,0.00079999,120]
[383809329,1757123491430,-151.0,0.00079999,120]
[383809330,1757123491439,-250.0,0.00079999,120]
[383809331,1757123491449,-160.0,0.00079999,120]
[383809332,1757123491459,-156.587,0.00079999,120]
[383809333,1757123491468,-160.0,0.00079999,120]
[383809334,1757123491593,-250.0,0.00079999,120]
[383809335,1757123491603,-162.380719,0.00079999,120]
[383809336,1757123491612,-168.3888056,0.00079999,120]
[383809337,1757123491622,-250.0,0.00079999,120]
[383809338,1757123491633,-160.0,0.00079999,120]
[383809339,1757123491643,-174.61919141,0.00079999,120]
[383809340,1757123491653,-151.0,0.00079999,120]
[383809341,1757123491663,-160.0,0.00079999,120]
[383809342,1757123491674,-250.0,0.00079999,120]
[383809343,1757123491683,-181.08010149,0.00079999,120]
[383809344,1757123491693,-151.0,0.00079999,120]
[383809345,1757123491703,-162.25755689,0.00079999,120]
[383809346,1757123491713,-261.92990565,0.00079999,120]
[383809347,1757123491722,-187.78006525,0.00079999,120]
[383809348,1757123491732,-151.0,0.00079999,120]
[383809349,1757123491741,-211.48664964,0.00079999,120]
[383809350,1757123491751,-151.0,0.00079999,120]
[383809351,1757123491762,-155.9940727,0.00079999,120]
[383809352,1757123491772,-151.0,0.00079999,120]
[383809353,1757123491782,-151.0,0.00079999,120]
[383809354,1757123491792,-151.0,0.00079999,120]
[383809355,1757123491802,-151.0,0.00079999,120]
[383809356,1757123491812,-151.0,0.00079999,120]
[383809357,1757123491822,-151.0,0.00079999,120]
[383809358,1757123491831,-250.0,0.00079999,120]
[383809359,1757123491840,-151.0,0.00079999,120]
[383809360,1757123491850,-250.0,0.00079999,120]
[383809361,1757123491859,-151.0,0.00079999,120]
[383809362,1757123491873,-500.0,0.00079999,120]
[383809363,1757123491886,-250.0,0.00079999,120]
[383809364,1757123491900,-151.0,0.00079999,120]
[383809365,1757123491915,-500.0,0.00079999,120]
[383809366,1757123491927,-250.0,0.00079999,120]
[383809367,1757123491939,-500.0,0.00079999,120]
[383809368,1757123491949,-250.0,0.00079999,120]
[383809369,1757123491959,-164.64562506,0.00079999,120]
[383809370,1757123491969,-500.0,0.00079999,120]
[383809371,1757123491979,-500.0,0.00079999,120]
[383809372,1757123491988,-250.0,0.00079999,120]
[383809373,1757123491997,-500.0,0.00079999,120]
[383809374,1757123492007,-294.74745965,0.00079999,120]
[383809375,1757123492017,-500.0,0.00079999,120]
[383809376,1757123492026,-500.0,0.00079999,120]
[383809377,1757123492036,-181.1833724,0.00079999,120]
[383809378,1757123492046,-151.0,0.00079999,120]
[383809379,1757123492055,-520.0,0.00079999,120]
[383809380,1757123492065,-500.0,0.00079999,120]
[383809381,1757123492074,-151.0,0.00079999,120]
[383809382,1757123492084,-500.0,0.00079999,120]
[383809383,1757123492094,-549.79551537,0.00079999,120]
[383809384,1757123492108,-500.0,0.00079999,120]
[383809385,1757123492118,-500.0,0.00079999,120]
[383809386,1757123492128,-151.8384098,0.00079999,120]
[383809387,1757123492138,-500.0,0.00079999,120]
[383809388,1757123492150,-500.0,0.00079999,120]
[383809389,1757123492160,-6888.0,0.00079999,120]
[383809390,1757123492169,-500.0,0.00079999,120]
[383809391,1757123492180,-500.0,0.00079999,120]
[383809392,1757123492190,-300.0,0.00079999,120]
[383809393,1757123492199,-250.0,0.00079999,120]
[383809394,1757123492209,-500.0,0.00079999,120]
[383809395,1757123492219,-500.0,0.00079999,120]
[383809396,1757123492229,-359.3460691,0.00079999,120]
[383809397,1757123492238,-500.0,0.00079999,120]
[383809398,1757123492247,-500.0,0.00079999,120]
[383809399,1757123492257,-320.1565679,0.00079999,120]
[383809400,1757123492267,-250.0,0.00079999,120]
[383809401,1757123492276,-500.0,0.00079999,120]
[383809402,1757123492286,-500.0,0.00079999,120]
[383809403,1757123492296,-500.0,0.00079999,120]
[383809404,1757123492305,-250.0,0.00079999,120]
[383809405,1757123492315,-500.0,0.00079999,120]
[383809406,1757123492325,-500.0,0.00079999,120]
[383809407,1757123492334,-250.0,0.00079999,120]
[383809408,1757123492344,-564.30141647,0.00079999,120]
[383809409,1757123492354,-500.0,0.00079999,120]
[383809410,1757123492363,-500.0,0.00079999,120]
[383809411,1757123492373,-250.0,0.00079999,120]
[383809412,1757123492383,-500.0,0.00079999,120]
[383809413,1757123492392,-500.0,0.00079999,120]
[383809414,1757123492402,-250.0,0.00079999,120]
[383809415,1757123492411,-200.0,0.00079999,120]
[383809416,1757123492421,-500.0,0.00079999,120]
[383809417,1757123492430,-500.0,0.00079999,120]
[383809418,1757123492439,-500.0,0.00079999,120]
[383809419,1757123492448,-207.4,0.00079999,120]
[383809420,1757123492458,-500.0,0.00079999,120]
[383809421,1757123492467,-264.35924897,0.00079999,120]
[383809422,1757123492477,-581.38813482,0.00079999,120]
[383809423,1757123492487,-500.0,0.00079999,120]
[383809424,1757123492496,-500.0,0.00079999,120]
[383809425,1757123492506,-500.0,0.00079999,120]
[383809426,1757123492515,-215.0738,0.00079999,120]
[383809427,1757123492525,-500.0,0.00079999,120]
[383809428,1757123492534,-250.0,0.00079999,120]
[383809429,1757123492544,-223.0315306,0.00079999,120]
[383809430,1757123492554,-151.0,0.00079999,120]
[383809431,1757123492563,-250.0,0.00079999,120]
[383809432,1757123492573,-500.0,0.00079999,120]
[383809433,1757123492583,-500.0,0.00079999,120]
[383809434,1757123492592,-231.28369723,0.00079999,120]
[383809435,1757123492601,-500.0,0.00079999,120]
[383809436,1757123492611,-250.0,0.00079999,120]
[383809437,1757123492621,-239.84119403,0.00079999,120]
[383809438,1757123492630,-151.0,0.00079999,120]
[383809439,1757123492639,-500.0,0.00079999,120]
[383809440,1757123492649,-151.0,0.00079999,120]
[383809441,1757123492659,-250.0,0.00079999,120]
[383809442,1757123492668,-596.29169413,0.00079999,120]
[383809443,1757123492678,-151.0,0.00079999,120]
[383809444,1757123492687,-248.71531821,0.00079999,120]
[383809445,1757123492696,-500.0,0.00079999,120]
[383809446,1757123492706,-151.0,0.00079999,120]
[383809447,1757123492715,-250.0,0.00079999,120]
[383809448,1757123492724,-151.50990684,0.00079999,120]
[383809449,1757123492733,-257.91778498,0.00079999,120]
[383809450,1757123492742,-500.0,0.00079999,120]
[383809451,1757123492752,-151.0,0.00079999,120]
[383809452,1757123492761,-250.0,0.00079999,120]
[383809453,1757123492771,-267.46074303,0.00079999,120]
[383809454,1757123492780,-522.47168492,0.00079999,120]
[383809455,1757123492789,-280.30727402,0.00079999,120]
[383809456,1757123492799,-151.0,0.00079999,120]
[383809457,1757123492809,-277.35679052,0.00079999,120]
[383809458,1757123492819,-150.0,0.00079999,120]
[383809459,1757123492828,-287.61899177,0.00079999,120]
[383809460,1757123492838,-151.0,0.00079999,120]
[383809461,1757123492847,-151.0,0.00079999,120]
[383809462,1757123492856,-298.26089446,0.00079999,120]
[383809463,1757123492865,-600.0,0.00079999,120]
[383809464,1757123492875,-243.72373819,0.00079999,120]
[383809465,1757123492884,-309.29654756,0.00079999,120]
[383809466,1757123492894,-600.0,0.00079999,120]
[383809467,1757123492903,-320.74051982,0.00079999,120]
[383809468,1757123492913,-150.0,0.00079999,120]
[383809469,1757123492923,-500.0,0.00079999,120]
[383809470,1757123492933,-600.0,0.00079999,120]
[383809471,1757123492943,-151.0,0.00079999,120]
[383809472,1757123492953,-332.60791905,0.00079999,120]
[383809473,1757123492963,-500.0,0.00079999,120]
[383809474,1757123492973,-600.0,0.00079999,120]
[383809475,1757123492983,-500.0,0.00079999,120]
[383809476,1757123492992,-151.0,0.00079999,120]
[383809477,1757123493002,-663.6910289,0.00079999,120]
[383809478,1757123493011,-344.91441206,0.00079999,120]
[383809479,1757123493021,-500.0,0.00079999,120]
[383809480,1757123493030,-151.0,0.00079999,120]
[383809481,1757123493040,-357.6762453,0.00079999,120]
[383809482,1757123493051,-150.87805407,0.00079999,120]
[383809483,1757123493061,-500.0,0.00079999,120]
[383809484,1757123493071,-151.0,0.00079999,120]
[383809485,1757123493081,-370.91026638,0.00079999,120]
[383809486,1757123493091,-500.0,0.00079999,120]
[383809487,1757123493102,-151.0,0.00079999,120]
[383809488,1757123493112,-384.63394623,0.00079999,120]
[383809489,1757123493122,-565.95061977,0.00079999,120]
[383809490,1757123493133,-398.86540225,0.00079999,120]
[383809491,1757123493143,-151.0,0.00079999,120]
[383809492,1757123493153,-250.0,0.00079999,120]
[383809493,1757123493163,-153.16896808,0.00079999,120]
[383809494,1757123493173,-250.0,0.00079999,120]
[383809495,1757123493183,-250.0,0.00079999,120]
[383809496,1757123493193,-250.0,0.00079999,120]
[383809497,1757123493203,-440.44222167,0.00079999,120]
[383809498,1757123493213,-413.17300974,0.00079999,120]
[383809499,1757123493222,-375.60636959,0.00079999,120]
[383809500,1757123493232,-259.19216141,0.00079999,31]
[383809501,1757123493242,-12708.92878468,0.0008,30]
[383809502,1757123493251,-274749.19147624,0.0008,15]
[383809503,1757123493270,-400.0,0.00037534,10]
[383809504,1757123493280,-708.4548597,0.0008,15]
[383809505,1757123493395,-403.0514193,0.00035616,10]
[383809506,1757123493407,-400.0,0.00035889,10]
[383809507,1757123493417,-400.0,0.00036163,10]
[383809508,1757123493427,-400.0,0.00036163,10]
[383809509,1757123493437,-400.0,0.00036437,10]
[383809510,1757123493447,-400.0,0.00036437,10]
[383809511,1757123493457,-400.0,0.00036711,10]
[383809512,1757123493467,-400.0,0.00036711,10]
[383809513,1757123493477,-400.0,0.00036985,10]
[383809514,1757123493486,-400.0,0.00037259,10]
[383809515,1757123493496,-400.0,0.0003726,10]
[383809516,1757123493505,-400.0,0.00037533,10]
[383809517,1757123493514,-400.0,0.00037534,10]
[383809518,1757123493524,-400.0,0.00037808,10]
[383809519,1757123493533,-172.87340664,0.00037808,10]
[383809520,1757123493542,-400.0,0.00038082,10]
[383809521,1757123493552,-532.74879687,0.00038356,10]
[383809522,1757123493561,-444.78,0.00039178,10]
[383809523,1757123493571,-472.11,0.00039999,10]
[383809524,1757123493581,-67200.15088775,0.0008,15]
[383809525,1757123493592,-1179.5,0.0008,15]
[383809526,1757123493604,-8374.03367282,0.0008,15]
[383809527,1757123493616,-535.34647326,0.0008,15]
[383809528,1757123493638,-1162.33079308,0.0008,15]
[383809529,1757123493651,-6087.95,0.0008,15]
[383809530,1757123493969,-400.0,0.00035616,10]
[383809531,1757123493979,-404.45905806,0.00035616,10]
[383809532,1757123493989,-400.0,0.00035616,10]
[383809533,1757123493999,-406.42383637,0.00035616,10]
[383809534,1757123494010,-400.0,0.0003589,10]
[383809535,1757123494020,-400.0,0.0003589,10]
[383809536,1757123494029,-400.0,0.00036164,10]
[383809537,1757123494039,-400.0,0.00036164,10]
[383809538,1757123494050,-400.0,0.00036438,10]
[383809539,1757123494060,-400.0,0.00036438,10]
[383809540,1757123494071,-400.0,0.00036712,10]
[383809541,1757123494081,-293.95222221,0.00036712,10]
[383809542,1757123494091,-77.16488336,0.00036985,10]
[383809543,1757123494117,-322.83511664,0.00036985,10]
[383809544,1757123494127,-400.0,0.00036986,10]
[383809545,1757123494138,-400.0,0.00037259,10]
[383809546,1757123494149,-143.80962507,0.0003726,10]
[383809547,1757123494169,-406.11574552,0.00035616,10]
[383809548,1757123494183,-256.19037493,0.0003726,10]
[383809549,1757123494192,-400.0,0.00037533,10]
[383809550,1757123494200,-177.04545913,0.00037534,10]
[383809551,1757123495502,-222.95454087,0.00037534,10]
[383809552,1757123495512,-400.0,0.00037807,10]
[383809553,1757123495521,-254.2203595,0.00037807,10]
[383809554,1757123495530,-400.0,0.00037808,10]
[383809555,1757123495539,-400.0,0.00038081,10]
[383809556,1757123495548,-45.70470943,0.00038355,10]
[383809557,1757123495692,-400.0,0.00035616,10]
[383809558,1757123495702,-400.0,0.00035889,10]
[383809559,1757123495711,-334.64,0.00036163,10]
[383809560,1757123495719,-354.29529057,0.00038355,10]
[383809561,1757123495728,-400.0,0.00038629,10]
[383809562,1757123495736,-325.66470943,0.00038903,10]
[383809563,1757123495748,-5.32350517,0.00038903,10]
[383809564,1757123495757,-472.11,0.00040273,10]
[383809565,1757123495766,-472.11,0.00040547,10]
[383809566,1757123495775,-472.11,0.00040821,10]
[383809567,1757123495784,-472.11,0.00041095,10]
[383809568,1757123495793,-209.41299483,0.00041369,120]
[383809569,1757123495813,-262.69700517,0.00041369,120]
[383809570,1757123495822,-472.11,0.00041643,120]
[383809571,1757123495832,-472.11,0.00041917,120]
[383809572,1757123495841,-90.93420304,0.00064557,2]
[383809573,1757123495856,-472.22249721,0.00042191,120]
[383809574,1757123495865,-603.63976231,0.00064557,2]
[383809575,1757123495874,-694.57396532,0.00067626,2]
[383809576,1757123495883,-396.8167101,0.00070694,2]
[383809577,1757123495894,-297.75725522,0.00070694,2]
[383809578,1757123495904,-412.59274332,0.00073763,2]
[383809579,1757123495915,-281.981222,0.00073763,2]
[383809580,1757123495925,-287.60795547,0.00076831,2]
[383809581,1757123495936,-406.96600985,0.00076831,2]
[383809582,1757123495946,-3524.65306361,0.00077691,2]
[383809583,1757123495955,-172.83625556,0.00077691,16]
[383809584,1757123495965,-694.57396532,0.000799,2]
[383809585,1757123495975,-250.0,0.00079999,120]
[383809586,1757123495984,-250.0,0.00079999,120]
[383809587,1757123495993,-263.10129618,0.00079999,120]
[383809588,1757123496002,-640321.43051944,0.0008,15]
[383809589,1757123585644,156.41,0.00013699,2]
[383809633,1757124405115,-162.49,0.00026502,2]
[383809634,1757124405141,-162.49,0.00029446,2]
[383809635,1757124405165,-162.49,0.00032391,2]
[383809636,1757124405192,-72.74292561,0.00035336,2]
[383809637,1757124410597,-89.74707439,0.00035336,2]
[383809638,1757124410630,-1830.0541993,0.0003553,2]
[383809639,1757124410659,-186.908,0.00035615,42]
[383809640,1757124410685,-360.0,0.00035615,2]
[383809641,1757124410712,-200.0,0.00035615,30]
[383809642,1757124410740,-427.89615427,0.00035616,10]
[383809643,1757124410768,-411.29582741,0.00035616,10]
[383809644,1757124410796,-418.12473934,0.00035616,10]
[383809645,1757124410823,-412.41542678,0.00035616,10]
[383809646,1757124410850,-408.77500667,0.00035616,10]
[383809647,1757124410877,-404.17772981,0.00035616,10]
[383809648,1757124410902,-276.39135823,0.00035616,10]
[383809649,1757124410929,-400.0,0.00035616,10]
[383809650,1757124410956,-400.0,0.00035616,10]
[383809651,1757124410981,-538.02,0.00035616,10]
[383809652,1757124411007,-400.0,0.00035616,10]
[383809653,1757124411035,-400.0,0.00035616,10]
[383809654,1757124411063,-400.0,0.00035616,10]
[383809655,1757124411094,-400.0,0.00035616,10]
[383809656,1757124411122,-409.61614213,0.00035616,10]
[383809657,1757124411157,-400.0,0.00035616,10]
[383809658,1757124411187,-545.69,0.00035616,10]
[383809659,1757124411214,-400.0,0.00035616,10]
[383809660,1757124411242,-425.1,0.00035616,10]
[383809661,1757124411271,-400.0,0.00035616,10]
[383809662,1757124411300,-400.0,0.00035616,10]
[383809663,1757124411330,-400.0,0.00035616,10]
[383809664,1757124411357,-400.0,0.00035616,10]
[383809665,1757124411383,-400.0,0.00035616,10]
[383809666,1757124411408,-400.0,0.00035616,10]
[383809667,1757124411437,-400.0,0.00035616,10]
[383809668,1757124411465,-400.0,0.00035616,10]
[383809669,1757124411493,-400.0,0.00035616,10]
[383809670,1757124411519,-400.0,0.00035616,10]
[383809671,1757124411547,-400.0,0.00035616,10]
[383809672,1757124411575,-400.0,0.00035616,10]
[383809673,1757124411605,-400.0,0.00035616,10]
[383809674,1757124411632,-400.0,0.00035616,10]
[383809675,1757124411659,-400.0,0.00035616,10]
[383809676,1757124411685,-400.0,0.00035616,10]
[383809677,1757124411711,-375.23244773,0.00035616,10]
[383809678,1757124411736,-400.0,0.00035616,10]
[383809679,1757124411764,-374.71803336,0.00035616,10]
[383809680,1757124411789,-400.0,0.00035616,10]
[383809681,1757124411817,-444.59,0.00035616,10]
[383809682,1757124411844,-156.39469085,0.00035616,10]
[383809683,1757124411872,-500.0,0.00035616,10]
[383809684,1757124411900,-400.0,0.00035616,10]
[383809685,1757124411927,-486.05226732,0.00035616,10]
[383809686,1757124411955,-400.0,0.00035616,10]
[383809687,1757124411983,-374.27407549,0.00035616,10]
[383809688,1757124412013,-400.0,0.00035616,10]
[383809689,1757124412041,-400.0,0.00035616,10]
[383809690,1757124412069,-500.0,0.00035616,10]
[383809691,1757124412097,-237.59284309,0.00035878,15]
[383809692,1757124412123,-170.50280182,0.00035878,15]
[383809693,1757124412162,-15588.00349867,0.00035879,2]
[383809694,1757124412190,-150.0,0.00035888,120]
[383809695,1757124412221,-400.0,0.00035889,10]
[383809696,1757124412249,-401.73495592,0.00035889,10]
[383809697,1757124412277,-400.0,0.00035889,10]
[383809698,1757124412304,-486.69097729,0.00035889,10]
[383809699,1757124412333,-409.46214459,0.00035889,10]
[383809700,1757124412359,-352.67491671,0.00035889,10]
[383809701,1757124412386,-314.09776665,0.00035889,10]
[383809702,1757124412417,-401.31110517,0.00035889,10]
[383809703,1757124412447,-402.30817511,0.00035889,10]
[383809704,1757124412475,-400.0,0.00035889,10]
[383809705,1757124412503,-400.0,0.00035889,10]
[383809706,1757124412929,-401.14927251,0.00035889,10]
[383809707,1757124412956,-400.0,0.00035889,10]
[383809708,1757124412981,-402.39877602,0.00035889,10]
[383809709,1757124413005,-400.0,0.00035889,10]
[383809710,1757124413030,-400.0,0.00035889,10]
[383809711,1757124413055,-400.0,0.00035889,10]
[383809712,1757124413079,-402.51863195,0.00035889,10]
[383809713,1757124413102,-400.0,0.00035889,2]
[383809714,1757124413131,-400.0,0.00035889,10]
[383809715,1757124413158,-400.0,0.00035889,10]
[383809716,1757124413182,-400.0,0.00035889,10]
[383809717,1757124413207,-406.93084345,0.00035889,10]
[383809718,1757124413231,-400.0,0.00035889,10]
[383809719,1757124413257,-400.0,0.00035889,10]
[383809720,1757124413281,-400.0,0.00035889,10]
[383809721,1757124413307,-400.0,0.00035889,10]
[383809722,1757124413332,-400.0,0.00035889,10]
[383809723,1757124413358,-400.9278259,0.00035889,10]
[383809724,1757124413382,-402.06219015,0.00035889,10]
[383809725,1757124413407,-401.49400995,0.00035889,10]
[383809726,1757124413433,-400.0,0.0003589,10]
[383809727,1757124413458,-389.73,0.0003589,10]
[383809728,1757124413486,-444.51,0.0003589,10]
[383809729,1757124413513,-400.0,0.0003589,10]
[383809730,1757124413539,-402.63755744,0.00036163,10]
[383809731,1757124413565,-400.0,0.00036163,10]
[383809732,1757124413590,-400.9910208,0.00036163,10]
[383809733,1757124413616,-400.0,0.00036163,10]
[383809734,1757124413642,-218.00305358,0.00036163,10]
[383809735,1757124413667,-401.21168329,0.00036163,10]
[383809736,1757124413694,-400.0,0.00036163,2]
[383809737,1757124413720,-401.74646323,0.00036163,10]
[383809738,1757124413745,-402.84351767,0.00036163,10]
[383809739,1757124413770,-235.34655078,0.00036163,10]
[383809740,1757124413795,-402.4203554,0.00036163,10]
[383809741,1757124413820,-402.11656628,0.00036163,10]
[383809742,1757124413846,-400.0,0.00036164,10]
[383809743,1757124413871,-905.59077226,0.0003632,2]
[383809744,1757124413898,-231.7389,0.00036328,2]
[383809745,1757124413926,-400.0,0.00036437,10]
[383809746,1757124413951,-400.0,0.00036437,2]
[383809747,1757124413976,-300.0,0.00036438,10]
[383809748,1757124414001,-198.95591672,0.000365,120]
[383809749,1757124414027,-508.7456214,0.00036541,5]
[383809750,1757124414055,-2446.3264912,0.00036711,2]
[383809751,1757124414079,-400.0,0.00036711,10]
[383809752,1757124414105,-406.52739277,0.00036711,2]
[383809753,1757124414131,-312.74361165,0.00036905,2]
[383809754,1757124414155,-400.0,0.00036985,10]
[383809755,1757124414181,-157.00556454,0.000372,120]
[383809756,1757124414207,-157.0,0.00038,120]
[383809757,1757124414232,-159.0,0.00038,120]
[383809758,1757124414259,-162.49,0.0003828,2]
[383809759,1757124414284,-280.0,0.00039177,30]
[383809760,1757124414309,-500.0,0.00039289,7]
[383809761,1757124414334,-639.46025243,0.00039625,5]
[383809762,1757124414360,-639.46025242,0.00039626,5]
[383809763,1757124414385,-169.32301428,0.000397,120]
[383809764,1757124419948,1702.9299,0.000379,2]
[383809765,1757124420437,151.0,0.00034035,2]
[383809766,1757124433103,-158.0,0.00041,90]
[383809767,1757124433152,-162.49,0.00041225,2]
[383809768,1757124433183,-2446.3264912,0.00041374,2]
[383809769,1757124433210,-402.38420718,0.00041374,14]
[383809770,1757124433236,-500.0,0.00041877,2]
[383809771,1757124433263,-181.1833724,0.00041877,2]
[383809772,1757124433293,-1336.0,0.000419,2]
[383809773,1757124433318,-150.99,0.00041902,2]
[383809774,1757124433343,-3112.4,0.00041902,2]
[383809775,1757124433371,-499.99,0.00041902,2]
[383809776,1757124433396,-12639.61,0.00041902,30]
[383809777,1757124433420,-9999.99,0.00041902,2]
[383809778,1757124433447,-1131.24,0.00041902,2]
[383809779,1757124433472,-9999.99,0.00041902,2]
[383809780,1757124433499,-500.0,0.00041932,2]
[383809781,1757124433526,-280.0,0.00042145,30]
[383809782,1757124433556,-501.96632742,0.00042191,30]
[383809783,1757124433581,-160.0,0.00043021,2]
[383809784,1757124433607,-160.0,0.00043021,2]
[383809785,1757124433634,-514.736181,0.00043021,2]
[383809786,1757124433660,-160.0,0.00043021,2]
[383809787,1757124433685,-158.0,0.00043151,90]
[383809788,1757124433712,-500.0,0.00043392,30]
[383809789,1757124433737,-213.603,0.00044128,2]
[383809790,1757124433766,-162.49,0.0004417,2]
[383809791,1757124433792,-534.08911572,0.000447,2]
[383809792,1757124433819,-1090.22,0.00045,120]
[383809793,1757124433844,-2980.59,0.00045415,120]
[383809794,1757124433870,-1229.79,0.0004578,2]
[383809795,1757124433896,-150.0,0.00046,2]
[383809796,1757124433922,-2446.3264912,0.00046036,2]
[383809797,1757124433948,-391.0,0.0004636,60]
[383809798,1757124433973,-1012.74,0.00046963,2]
[383809799,1757124433998,-160.34,0.0004699,120]
[383809800,1757124434032,-162.49,0.00047114,2]
[383809801,1757124434058,-803.94396155,0.00047409,30]
[383809802,1757124434085,-160.0,0.00047627,7]
[383809803,1757124434112,-157.0,0.000482,120]
[383809804,1757124434137,-200.0,0.00048448,2]
[383809805,1757124434162,-213.603,0.00049255,120]
[383809806,1757124434188,-250.0,0.00049407,120]
[383809807,1757124434213,-336.13,0.000499,7]
[383809808,1757124434238,-1090.22,0.0005,120]
[383809809,1757124434263,-400.0,0.0005,120]
[383809810,1757124434928,150.0,0.000497,2]
[383809811,1757124435112,150.0,0.000497,2]
[383809812,1757124435404,212.06923706,0.000497,2]
[383809813,1757124437049,153.42,0.00035014,2]
[383809814,1757124547095,-280.0,0.00042145,30]
[383809815,1757124547116,-800.0,0.00045363,30]
[383809816,1757124547138,-391.0,0.0004636,60]
[383809817,1757124547160,-171.57057685,0.00049925,2]
[383809818,1757124547183,-162.49,0.00050059,2]
[383809819,1757124547210,-150.0,0.000502,2]
[383809820,1757124547233,-500.0,0.00050507,60]
[383809821,1757124547254,-415.85445386,0.00050599,15]
[383809822,1757124547276,-2446.3264912,0.00050699,2]
[383809823,1757124547299,-150.61,0.00051048,2]
[383809824,1757124547321,-150.0,0.00051849,120]
[383809825,1757124547343,-642.96980193,0.00052279,15]
[383809826,1757124558131,-548.0,0.00050996,60]
[383809827,1757124558154,-23.03019807,0.00052279,15]
[383809828,1757124558175,-190.29,0.000527,7]
[383809829,1757124558199,-162.49,0.00053003,2]
[383809830,1757124558223,-415.85445379,0.00053855,15]
[383809831,1757124558245,-400.0,0.00054246,120]
[383809832,1757124558266,-150.61,0.00054451,2]
[383809833,1757124558288,-402.52317558,0.00054794,120]
[383809834,1757124558308,-400.0,0.00054794,120]